fUST/lending_fUST_20250828
["ID","MTS","AMOUNT","RATE_DAILY","PERIOD"]
[381706825,1756315895938,-521.13,0.00023287,2]
[381706826,1756315895947,-449.08228157,0.00023287,2]
[381706827,1756315895957,-480.0,0.00023287,2]
[381706828,1756315895966,-438.11780381,0.00023287,2]
[381706829,1756315895975,-754.55,0.00023287,2]
[381706830,1756315895984,-480.0,0.00023287,2]
[381706831,1756315895993,-480.0,0.00023287,2]
[381706832,1756315896003,-480.0,0.00023287,2]
[381706833,1756315896012,-480.0,0.00023287,2]
[381706834,1756315896022,-480.0,0.00023287,2]
[381706835,1756315896031,-480.0,0.00023287,2]
[381706836,1756315896041,-480.0,0.00023287,2]
[381706837,1756315896051,-480.0,0.00023287,2]
[381706838,1756315896061,-480.0,0.00023287,2]
[381706839,1756315896070,-1012.65,0.00023287,2]
[381706840,1756315896080,-480.0,0.00023287,2]
[381706841,1756315896089,-499.63,0.00023287,2]
[381706842,1756315896098,-480.0,0.00023287,2]
[381706843,1756315896107,-480.0,0.00023287,2]
[381706844,1756315896117,-480.0,0.00023287,2]
[381706845,1756315896126,-263.22713991,0.00023287,2]
[381706846,1756315896136,-480.0,0.00023287,2]
[381706847,1756315896146,-480.0,0.00023287,2]
[381706848,1756315896155,-480.0,0.00023287,2]
[381706849,1756315896165,-734.05,0.00023287,2]
[381706850,1756315896175,-487.48,0.00023287,2]
[381706851,1756315896184,-480.0,0.00023287,2]
[381706852,1756315896194,-480.0,0.00023287,2]
[381706853,1756315896203,-861.84,0.00023287,2]
[381706854,1756315896212,-480.0,0.00023287,2]
[381706855,1756315896222,-480.0,0.00023287,2]
[381706856,1756315896231,-480.0,0.00023287,2]
[381706857,1756315896240,-480.0,0.00023287,2]
[381706858,1756315896249,-480.0,0.00023287,2]
[381706859,1756315896258,-480.0,0.00023287,2]
[381706860,1756315896268,-1003.54,0.00023287,2]
[381706861,1756315896277,-480.0,0.00023287,2]
[381706862,1756315896286,-480.0,0.00023287,2]
[381706863,1756315896296,-480.0,0.00023287,2]
[381706864,1756315896305,-480.0,0.00023287,2]
[381706865,1756315896314,-261.04964131,0.00023287,2]
[381706866,1756315896323,-480.0,0.00023287,2]
[381706867,1756315896334,-547.19,0.00023287,2]
[381706868,1756315896343,-591.49,0.00023287,2]
[381706869,1756315896353,-480.0,0.00023287,2]
[381706870,1756315896362,-480.0,0.00023287,2]
[381706871,1756315896372,-480.0,0.00023287,2]
[381706872,1756315896382,-480.0,0.00023287,2]
[381706873,1756315896392,-480.0,0.00023287,2]
[381706874,1756315896402,-480.0,0.00023287,2]
[381706875,1756315896412,-480.0,0.00023287,2]
[381706876,1756315896423,-480.0,0.00023287,2]
[381706877,1756315896432,-480.0,0.00023287,2]
[381706878,1756315896441,-501.98,0.00023287,2]
[381706879,1756315896450,-480.0,0.00023287,2]
[381706880,1756315896460,-480.0,0.00023287,2]
[381706881,1756315896470,-480.0,0.00023287,2]
[381706882,1756315896479,-653.06,0.00023287,2]
[381706883,1756315896488,-532.33,0.00023287,2]
[381706884,1756315896497,-480.0,0.00023287,2]
[381706885,1756315896507,-480.0,0.00023287,2]
[381706886,1756315896516,-480.0,0.00023287,2]
[381706887,1756315896525,-480.0,0.00023287,2]
[381706888,1756315896536,-480.0,0.00023287,2]
[381706889,1756315896545,-244.60459148,0.00023287,2]
[381706890,1756315896554,-480.0,0.00023287,2]
[381706891,1756315896563,-480.0,0.00023287,2]
[381706892,1756315896573,-480.0,0.00023287,2]
[381706893,1756315896583,-480.0,0.00023287,2]
[381706894,1756315896594,-480.0,0.00023287,2]
[381706895,1756315896604,-480.0,0.00023287,2]
[381706896,1756315896613,-480.0,0.00023287,2]
[381706897,1756315896623,-480.0,0.00023287,2]
[381706898,1756315896632,-480.0,0.00023287,2]
[381706899,1756315896642,-480.0,0.00023287,2]
[381706900,1756315896652,-480.0,0.00023287,2]
[381706901,1756315896662,-480.0,0.00023287,2]
[381706902,1756315896671,-521.62,0.00023287,2]
[381706903,1756315896681,-553.62,0.00023287,2]
[381706904,1756315896690,-480.0,0.00023287,2]
[381706905,1756315896702,-480.0,0.00023287,2]
[381706906,1756315896712,-480.0,0.00023287,2]
[381706907,1756315896721,-480.0,0.00023287,2]
[381706908,1756315896730,-480.0,0.00023287,2]
[381706909,1756315896740,-480.0,0.00023287,2]
[381706910,1756315896750,-633.41,0.00023287,2]
[381706911,1756315896759,-480.0,0.00023287,2]
[381706912,1756315896769,-480.0,0.00023287,2]
[381706913,1756315896778,-480.0,0.00023287,2]
[381706914,1756315896787,-480.84,0.00023287,2]
[381706915,1756315896797,-480.0,0.00023287,2]
[381706916,1756315896806,-480.0,0.00023287,2]
[381706917,1756315896815,-494.4423398,0.00023287,2]
[381706918,1756315896824,-480.0,0.00023287,2]
[381706919,1756315896834,-647.08,0.00023287,2]
[381706920,1756315896844,-480.0,0.00023287,2]
[381706921,1756315896854,-559.93,0.00023287,2]
[381706922,1756315896864,-480.0,0.00023287,2]
[381706923,1756315896874,-480.0,0.00023287,2]
[381706924,1756315896885,-480.0,0.00023287,2]
[381706925,1756315896895,-480.0,0.00023287,2]
[381706926,1756315896904,-480.0,0.00023287,2]
[381706927,1756315896913,-480.0,0.00023287,2]
[381706928,1756315896923,-480.0,0.00023287,2]
[381706929,1756315896933,-609.46,0.00023287,2]
[381706930,1756315896942,-480.0,0.00023287,2]
[381706931,1756315896953,-480.0,0.00023287,2]
[381706932,1756315896962,-480.0,0.00023287,2]
[381706933,1756315896971,-480.0,0.00023287,2]
[381706934,1756315896980,-480.0,0.00023287,2]
[381706935,1756315896990,-555.02,0.00023287,2]
[381706936,1756315896999,-480.0,0.00023287,2]
[381706937,1756315897008,-480.0,0.00023287,2]
[381706938,1756315897017,-660.92,0.00023287,2]
[381706939,1756315897026,-569.18,0.00023287,2]
[381706940,1756315897036,-1003.81,0.00023287,2]
[381706941,1756315897045,-680.33,0.00023287,2]
[381706942,1756315897056,-480.0,0.00023287,2]
[381706943,1756315897066,-372.07155672,0.00023287,2]
[381706944,1756315897075,-480.0,0.00023287,2]
[381706945,1756315897149,-480.0,0.00023287,2]
[381706946,1756315897159,-681.56,0.00023287,2]
[381706947,1756315897169,-480.0,0.00023287,2]
[381706948,1756315897179,-389.41162445,0.00023287,2]
[381706949,1756315897188,-480.0,0.00023287,2]
[381706950,1756315897198,-480.0,0.00023287,2]
[381706951,1756315897208,-480.0,0.00023287,2]
[381706952,1756315897218,-480.0,0.00023287,2]
[381706953,1756315897229,-480.0,0.00023287,2]
[381706954,1756315897240,-480.0,0.00023287,2]
[381706955,1756315897249,-480.0,0.00023287,2]
[381706956,1756315897260,-1465.34,0.00023287,2]
[381706957,1756315897269,-480.0,0.00023287,2]
[381706958,1756315897279,-480.0,0.00023287,2]
[381706959,1756315897288,-480.0,0.00023287,2]
[381706960,1756315897298,-544.04,0.00023287,2]
[381706961,1756315897308,-480.0,0.00023287,2]
[381706962,1756315897317,-480.0,0.00023287,2]
[381706963,1756315897327,-480.0,0.00023287,2]
[381706964,1756315897338,-1039.38,0.00023287,2]
[381706965,1756315897348,-480.0,0.00023287,2]
[381706966,1756315897358,-531.56,0.00023287,2]
[381706967,1756315897367,-1343.03,0.00023287,2]
[381706968,1756315897376,-480.0,0.00023287,2]
[381706969,1756315897385,-480.0,0.00023287,2]
[381706970,1756315897394,-480.0,0.00023287,2]
[381706971,1756315897405,-600.0,0.00023287,2]
[381706972,1756315897415,-480.0,0.00023287,2]
[381706973,1756315897424,-480.0,0.00023287,2]
[381706974,1756315897433,-480.0,0.00023287,2]
[381706975,1756315897442,-500.0,0.00023287,2]
[381706976,1756315897452,-614.45,0.00023287,2]
[381706977,1756315897472,-480.0,0.00023287,2]
[381706978,1756315897482,-480.0,0.00023287,2]
[381706979,1756315897492,-480.0,0.00023287,2]
[381706980,1756315897501,-480.0,0.00023287,2]
[381706981,1756315897510,-480.0,0.00023287,2]
[381706982,1756315897519,-760.2,0.00023287,2]
[381706983,1756315897531,-530.93,0.00023287,2]
[381706984,1756315897544,-480.0,0.00023287,2]
[381706985,1756315897554,-1064.0,0.00023287,2]
[381706986,1756315897562,-559.41616791,0.00023287,2]
[381706987,1756315897572,-480.0,0.00023287,2]
[381706988,1756315897581,-480.0,0.00023287,2]
[381706989,1756315897591,-480.0,0.00023287,2]
[381706990,1756315897601,-480.0,0.00023287,2]
[381706991,1756315897610,-480.0,0.00023287,2]
[381706992,1756315897619,-505.17,0.00023287,2]
[381706993,1756315897628,-892.04,0.00023287,2]
[381706994,1756315897638,-662.34,0.00023287,2]
[381706995,1756315897647,-480.0,0.00023287,2]
[381706996,1756315897656,-480.0,0.00023287,2]
[381706997,1756315897665,-480.0,0.00023287,2]
[381706998,1756315897675,-480.0,0.00023287,2]
[381706999,1756315897685,-480.0,0.00023287,2]
[381707000,1756315897694,-480.0,0.00023287,2]
[381707001,1756315897704,-480.0,0.00023287,2]
[381707002,1756315897713,-480.0,0.00023287,2]
[381707003,1756315897722,-1566.48,0.00023287,2]
[381707004,1756315897732,-480.0,0.00023287,2]
[381707005,1756315897741,-480.0,0.00023287,2]
[381707006,1756315897750,-480.0,0.00023287,2]
[381707007,1756315897760,-480.0,0.00023287,2]
[381707008,1756315897769,-480.0,0.00023287,2]
[381707009,1756315897778,-480.0,0.00023287,2]
[381707010,1756315897787,-480.0,0.00023287,2]
[381707011,1756315897796,-703.96,0.00023287,2]
[381707012,1756315897806,-480.0,0.00023287,2]
[381707013,1756315897815,-480.0,0.00023287,2]
[381707014,1756315897824,-717.25,0.00023287,2]
[381707015,1756315897833,-480.0,0.00023287,2]
[381707016,1756315897842,-480.0,0.00023287,2]
[381707017,1756315897852,-480.0,0.00023287,2]
[381707018,1756315897861,-480.0,0.00023287,2]
[381707019,1756315897870,-766.14,0.00023287,2]
[381707020,1756315897879,-480.0,0.00023287,2]
[381707021,1756315897888,-480.0,0.00023287,2]
[381707022,1756315897897,-1026.52,0.00023287,2]
[381707023,1756315897911,-480.0,0.00023287,2]
[381707024,1756315897920,-480.0,0.00023287,2]
[381707025,1756315897929,-177.16936057,0.00023287,2]
[381707026,1756315897939,-897.12,0.00023287,2]
[381707027,1756315897948,-480.0,0.00023287,2]
[381707028,1756315897963,-480.0,0.00023287,2]
[381707029,1756315897972,-480.0,0.00023287,2]
[381707030,1756315897981,-496.15,0.00023287,2]
[381707031,1756315897994,-480.0,0.00023287,2]
[381707032,1756315898003,-480.0,0.00023287,2]
[381707033,1756315898012,-839.95,0.00023287,2]
[381707034,1756315898022,-480.0,0.00023287,2]
[381707035,1756315898031,-510.18,0.00023287,2]
[381707036,1756315898041,-480.0,0.00023287,2]
[381707037,1756315898049,-4321.67,0.00023287,2]
[381707038,1756315898059,-480.0,0.00023287,2]
[381707039,1756315898068,-480.0,0.00023287,2]
[381707040,1756315898078,-748.41,0.00023287,2]
[381707041,1756315898088,-480.0,0.00023287,2]
[381707042,1756315898097,-530.0,0.00023287,2]
[381707043,1756315898106,-482.27953886,0.00023287,2]
[381707044,1756315898115,-480.0,0.00023287,2]
[381707045,1756315898128,-480.0,0.00023287,2]
[381707046,1756315898137,-480.0,0.00023287,2]
[381707047,1756315898146,-497.55,0.00023287,2]
[381707048,1756315898156,-487.03,0.00023287,2]
[381707049,1756315898165,-273.63410922,0.00023287,2]
[381707050,1756315898175,-480.0,0.00023287,2]
[381707051,1756315898184,-480.0,0.00023287,2]
[381707052,1756315898193,-831.39,0.00023287,2]
[381707053,1756315898203,-480.0,0.00023287,2]
[381707054,1756315898212,-480.0,0.00023287,2]
[381707055,1756315898221,-524.19,0.00023287,2]
[381707056,1756315898231,-480.0,0.00023287,2]
[381707057,1756315898240,-1177.95,0.00023287,2]
[381707058,1756315898249,-480.0,0.00023287,2]
[381707059,1756315898258,-480.0,0.00023287,2]
[381707060,1756315898268,-480.0,0.00023287,2]
[381707061,1756315898277,-480.0,0.00023287,2]
[381707062,1756315898287,-480.0,0.00023287,2]
[381707063,1756315898296,-480.0,0.00023287,2]
[381707064,1756315898306,-480.0,0.00023287,2]
[381707065,1756315898315,-480.0,0.00023287,2]
[381707066,1756315898325,-612.8,0.00023287,2]
[381707067,1756315898336,-480.0,0.00023287,2]
[381707068,1756315898345,-480.0,0.00023287,2]
[381707069,1756315898354,-588.21,0.00023287,2]
[381707070,1756315898363,-1709.99,0.00023287,2]
[381707071,1756315898372,-480.0,0.00023287,2]
[381707072,1756315898382,-480.0,0.00023287,2]
[381707073,1756315898391,-532.52,0.00023287,2]
[381707074,1756315898401,-480.0,0.00023287,2]
[381707075,1756315898410,-480.0,0.00023287,2]
[381707076,1756315898420,-480.0,0.00023287,2]
[381707077,1756315898430,-480.0,0.00023287,2]
[381707078,1756315898440,-907.14,0.00023287,2]
[381707079,1756315898449,-480.0,0.00023287,2]
[381707080,1756315898459,-1087.58,0.00023287,2]
[381707081,1756315898469,-480.0,0.00023287,2]
[381707082,1756315898479,-615.39,0.00023287,2]
[381707083,1756315898488,-480.0,0.00023287,2]
[381707084,1756315898499,-480.0,0.00023287,2]
[381707085,1756315898508,-501.15,0.00023287,2]
[381707086,1756315898519,-822.31,0.00023287,2]
[381707087,1756315898528,-480.0,0.00023287,2]
[381707088,1756315898537,-480.0,0.00023287,2]
[381707089,1756315898547,-480.0,0.00023287,2]
[381707090,1756315898556,-480.0,0.00023287,2]
[381707091,1756315898566,-480.0,0.00023287,2]
[381707092,1756315898576,-480.0,0.00023287,2]
[381707093,1756315898587,-480.0,0.00023287,2]
[381707094,1756315898600,-480.0,0.00023287,2]
[381707095,1756315898610,-480.0,0.00023287,2]
[381707096,1756315898619,-513.13,0.00023287,2]
[381707097,1756315898629,-480.0,0.00023287,2]
[381707098,1756315898638,-7578.13,0.00023287,2]
[381707099,1756315898648,-767.09,0.00023287,2]
[381707100,1756315898657,-480.0,0.00023287,2]
[381707101,1756315898668,-480.0,0.00023287,2]
[381707102,1756315898680,-1421.98,0.00023287,2]
[381707103,1756315898690,-480.0,0.00023287,2]
[381707104,1756315898700,-480.0,0.00023287,2]
[381707105,1756315898709,-480.0,0.00023287,2]
[381707106,1756315898719,-480.0,0.00023287,2]
[381707107,1756315898728,-480.0,0.00023287,2]
[381707108,1756315898738,-564.27,0.00023287,2]
[381707109,1756315898748,-480.0,0.00023287,2]
[381707110,1756315898758,-480.0,0.00023287,2]
[381707111,1756315898769,-480.0,0.00023287,2]
[381707112,1756315898778,-480.0,0.00023287,2]
[381707113,1756315898790,-480.0,0.00023287,2]
[381707114,1756315898800,-480.0,0.00023287,2]
[381707115,1756315898810,-480.0,0.00023287,2]
[381707116,1756315898819,-545.55,0.00023287,2]
[381707117,1756315898829,-480.0,0.00023287,2]
[381707118,1756315898841,-480.0,0.00023287,2]
[381707119,1756315898851,-1006.49,0.00023287,2]
[381707120,1756315898861,-480.0,0.00023287,2]
[381707121,1756315898871,-480.0,0.00023287,2]
[381707122,1756315898881,-480.0,0.00023287,2]
[381707123,1756315898890,-480.0,0.00023287,2]
[381707124,1756315898900,-480.0,0.00023287,2]
[381707125,1756315898912,-480.0,0.00023287,2]
[381707126,1756315898922,-480.0,0.00023287,2]
[381707127,1756315898933,-480.0,0.00023287,2]
[381707128,1756315898942,-602.91,0.00023287,2]
[381707129,1756315898952,-480.0,0.00023287,2]
[381707130,1756315898963,-480.0,0.00023287,2]
[381707131,1756315898972,-204.42580952,0.00023287,2]
[381707132,1756315898983,-480.0,0.00023287,2]
[381707133,1756315898994,-480.0,0.00023287,2]
[381707134,1756315899004,-480.0,0.00023287,2]
[381707135,1756315899014,-480.0,0.00023287,2]
[381707136,1756315899024,-596.82,0.00023287,2]
[381707137,1756315899033,-575.39,0.00023287,2]
[381707138,1756315899043,-480.0,0.00023287,2]
[381707139,1756315899053,-480.0,0.00023287,2]
[381707140,1756315899063,-480.0,0.00023287,2]
[381707141,1756315899073,-480.0,0.00023287,2]
[381707142,1756315899084,-480.0,0.00023287,2]
[381707143,1756315899093,-506.47,0.00023287,2]
[381707144,1756315899103,-480.0,0.00023287,2]
[381707145,1756315899112,-635.3,0.00023287,2]
[381707146,1756315899122,-1605.48,0.00023287,2]
[381707147,1756315899132,-984.43,0.00023287,2]
[381707148,1756315899142,-480.0,0.00023287,2]
[381707149,1756315899152,-480.0,0.00023287,2]
[381707150,1756315899162,-496.43,0.00023287,2]
[381707151,1756315899172,-480.0,0.00023287,2]
[381707152,1756315899182,-480.0,0.00023287,2]
[381707153,1756315899192,-480.0,0.00023287,2]
[381707154,1756315899202,-708.97,0.00023287,2]
[381707155,1756315899212,-480.0,0.00023287,2]
[381707156,1756315899221,-480.0,0.00023287,2]
[381707157,1756315899232,-480.0,0.00023287,2]
[381707158,1756315899242,-480.0,0.00023287,2]
[381707159,1756315899251,-480.0,0.00023287,2]
[381707160,1756315899261,-517.74,0.00023287,2]
[381707161,1756315899272,-480.0,0.00023287,2]
[381707162,1756315899281,-500.0,0.00023287,2]
[381707163,1756315899291,-480.0,0.00023287,2]
[381707164,1756315899301,-480.0,0.00023287,2]
[381707165,1756315899311,-636.21,0.00023287,2]
[381707166,1756315899320,-480.0,0.00023287,2]
[381707167,1756315899330,-735.93,0.00023287,2]
[381707168,1756315899341,-480.0,0.00023287,2]
[381707169,1756315899351,-480.0,0.00023287,2]
[381707170,1756315899361,-480.0,0.00023287,2]
[381707171,1756315899371,-551.29,0.00023287,2]
[381707172,1756315899381,-530.01,0.00023287,2]
[381707173,1756315899390,-480.0,0.00023287,2]
[381707174,1756315899400,-480.0,0.00023287,2]
[381707175,1756315899410,-749.97,0.00023287,2]
[381707176,1756315899420,-480.0,0.00023287,2]
[381707177,1756315899429,-828.83,0.00023287,2]
[381707178,1756315899438,-646.17,0.00023287,2]
[381707179,1756315899448,-709.76,0.00023287,2]
[381707180,1756315899458,-480.0,0.00023287,2]
[381707181,1756315899467,-1357.85,0.00023287,2]
[381707182,1756315899477,-1059.71,0.00023287,2]
[381707183,1756315899486,-480.0,0.00023287,2]
[381707184,1756315899496,-1042.56,0.00023287,2]
[381707185,1756315899506,-480.0,0.00023287,2]
[381707186,1756315899516,-669.54,0.00023287,2]
[381707187,1756315899526,-480.0,0.00023287,2]
[381707188,1756315899536,-480.0,0.00023287,2]
[381707189,1756315899546,-480.0,0.00023287,2]
[381707190,1756315899556,-480.0,0.00023287,2]
[381707191,1756315899566,-707.48,0.00023287,2]
[381707192,1756315899575,-550.53,0.00023287,2]
[381707193,1756315899585,-480.0,0.00023287,2]
[381707194,1756315899598,-1356.93,0.00023287,2]
[381707195,1756315899608,-754.65,0.00023287,2]
[381707196,1756315899618,-480.0,0.00023287,2]
[381707197,1756315899628,-480.0,0.00023287,2]
[381707198,1756315899639,-507.08521002,0.00023287,2]
[381707199,1756315899649,-480.0,0.00023287,2]
[381707200,1756315899659,-480.0,0.00023287,2]
[381707201,1756315899670,-480.0,0.00023287,2]
[381707202,1756315899680,-480.0,0.00023287,2]
[381707203,1756315899689,-833.89,0.00023287,2]
[381707204,1756315899700,-480.0,0.00023287,2]
[381707205,1756315899710,-1635.95,0.00023287,2]
[381707206,1756315899720,-616.04,0.00023287,2]
[381707207,1756315899730,-1308.59,0.00023287,2]
[381707208,1756315899739,-833.28,0.00023287,2]
[381707209,1756315899749,-480.0,0.00023287,2]
[381707210,1756315899758,-480.0,0.00023287,2]
[381707211,1756315899768,-1328.04,0.00023287,2]
[381707212,1756315899778,-480.0,0.00023287,2]
[381707213,1756315899789,-491.24,0.00023287,2]
[381707214,1756315899798,-6376.86,0.00023287,2]
[381707215,1756315899808,-480.0,0.00023287,2]
[381707216,1756315899819,-480.0,0.00023287,2]
[381707217,1756315899829,-1366.07,0.00023287,2]
[381707218,1756315899839,-480.0,0.00023287,2]
[381707219,1756315899849,-480.0,0.00023287,2]
[381707220,1756315899859,-480.0,0.00023287,2]
[381707221,1756315899870,-811.3,0.00023287,2]
[381707222,1756315899882,-480.0,0.00023287,2]
[381707223,1756315899892,-480.0,0.00023287,2]
[381707224,1756315899902,-1738.63,0.00023287,2]
[381707225,1756315899912,-480.0,0.00023287,2]
[381707226,1756315899922,-1230.54,0.00023287,2]
[381707227,1756315899932,-597.4,0.00023287,2]
[381707228,1756315899942,-5290.09,0.00023287,2]
[381707229,1756315899952,-480.0,0.00023287,2]
[381707230,1756315899961,-774.22,0.00023287,2]
[381707231,1756315899971,-480.0,0.00023287,2]
[381707232,1756315899981,-681.82,0.00023287,2]
[381707233,1756315899991,-683.68,0.00023287,2]
[381707234,1756315900002,-864.24,0.00023287,2]
[381707235,1756315900013,-1277.71,0.00023287,2]
[381707236,1756315900023,-480.0,0.00023287,2]
[381707237,1756315900033,-480.0,0.00023287,2]
[381707238,1756315900044,-1562.72,0.00023287,2]
[381707239,1756315900054,-480.0,0.00023287,2]
[381707240,1756315900064,-480.0,0.00023287,2]
[381707241,1756315900074,-480.0,0.00023287,2]
[381707242,1756315900084,-480.0,0.00023287,2]
[381707243,1756315900094,-1230.71,0.00023287,2]
[381707244,1756315900104,-586.58,0.00023287,2]
[381707245,1756315900114,-480.0,0.00023287,2]
[381707246,1756315900124,-898.6,0.00023287,2]
[381707247,1756315900134,-480.0,0.00023287,2]
[381707248,1756315900145,-480.0,0.00023287,2]
[381707249,1756315900155,-480.0,0.00023287,2]
[381707250,1756315900165,-682.12,0.00023287,2]
[381707251,1756315900175,-480.0,0.00023287,2]
[381707252,1756315900186,-2720.08,0.00023287,2]
[381707253,1756315900195,-480.0,0.00023287,2]
[381707254,1756315900206,-1400.27,0.00023287,2]
[381707255,1756315900216,-480.0,0.00023287,2]
[381707256,1756315900226,-480.0,0.00023287,2]
[381707257,1756315900236,-1633.28,0.00023287,2]
[381707258,1756315900246,-480.0,0.00023287,2]
[381707259,1756315900256,-984.77,0.00023287,2]
[381707260,1756315900266,-840.57,0.00023287,2]
[381707261,1756315900276,-480.0,0.00023287,2]
[381707262,1756315900287,-554.05,0.00023287,2]
[381707263,1756315900296,-2050.68,0.00023287,2]
[381707264,1756315900306,-1927.62,0.00023287,2]
[381707265,1756315900316,-713.12,0.00023287,2]
[381707266,1756315900326,-480.0,0.00023287,2]
[381707267,1756315900336,-480.0,0.00023287,2]
[381707268,1756315900346,-480.0,0.00023287,2]
[381707269,1756315900356,-793.66,0.00023287,2]
[381707270,1756315900366,-480.0,0.00023287,2]
[381707271,1756315900375,-491.88634379,0.00023287,2]
[381707272,1756315900385,-531.54,0.00023287,2]
[381707273,1756315900395,-480.0,0.00023287,2]
[381707274,1756315900405,-699.19,0.00023287,2]
[381707275,1756315900415,-247.81819865,0.00023287,2]
[381707276,1756315900425,-480.0,0.00023287,2]
[381707277,1756315900436,-480.0,0.00023287,2]
[381707278,1756315900446,-480.0,0.00023287,2]
[381707279,1756315900456,-480.0,0.00023287,2]
[381707280,1756315900466,-480.0,0.00023287,2]
[381707281,1756315900476,-525.84,0.00023287,2]
[381707282,1756315900485,-480.0,0.00023287,2]
[381707283,1756315900495,-708.0,0.00023287,2]
[381707284,1756315900505,-480.0,0.00023287,2]
[381707285,1756315900515,-4922.48,0.00023287,2]
[381707286,1756315900525,-1873.21,0.00023287,2]
[381707287,1756315900535,-480.0,0.00023287,2]
[381707288,1756315900544,-480.0,0.00023287,2]
[381707289,1756315900554,-480.0,0.00023287,2]
[381707290,1756315900566,-2273.72,0.00023287,2]
[381707291,1756315900576,-480.0,0.00023287,2]
[381707292,1756315900586,-542.01,0.00023287,2]
[381707293,1756315900600,-480.0,0.00023287,2]
[381707294,1756315900609,-480.0,0.00023287,2]
[381707295,1756315900619,-480.0,0.00023287,2]
[381707296,1756315900629,-480.0,0.00023287,2]
[381707297,1756315900639,-480.0,0.00023287,2]
[381707298,1756315900648,-620.03,0.00023287,2]
[381707299,1756315900659,-500.0,0.00023287,2]
[381707300,1756315900670,-480.0,0.00023287,2]
[381707301,1756315900680,-480.0,0.00023287,2]
[381707302,1756315900690,-3730.3,0.00023287,2]
[381707303,1756315900700,-480.0,0.00023287,2]
[381707304,1756315900710,-480.0,0.00023287,2]
[381707305,1756315900720,-1757.83,0.00023287,2]
[381707306,1756315900729,-480.0,0.00023287,2]
[381707307,1756315900739,-480.0,0.00023287,2]
[381707308,1756315900750,-4335.47,0.00023287,2]
[381707309,1756315900761,-702.62,0.00023287,2]
[381707310,1756315900771,-1127.47,0.00023287,2]
[381707311,1756315900781,-653.99,0.00023287,2]
[381707312,1756315900790,-1061.58,0.00023287,2]
[381707313,1756315900800,-480.93,0.00023287,2]
[381707314,1756315900810,-4789.45,0.00023287,2]
[381707315,1756315900820,-480.0,0.00023287,2]
[381707316,1756315900830,-1335.71,0.00023287,2]
[381707317,1756315901003,-2106.23,0.00023287,2]
[381707318,1756315901015,-480.0,0.00023287,2]
[381707319,1756315901025,-480.0,0.00023287,2]
[381707320,1756315901034,-480.0,0.00023287,2]
[381707321,1756315901044,-4610.0,0.00023287,2]
[381707322,1756315901055,-480.0,0.00023287,2]
[381707323,1756315901064,-480.0,0.00023287,2]
[381707324,1756315901074,-480.0,0.00023287,2]